{"text_format":"3","workbook":"xlsx","n_sheets":1,"sheets":["Abnahmeprotokoll"],"read":"whole","date_system":"1900"}

{"sheet":"Abnahmeprotokoll","index":0,"n_rows":129,"n_cols":8,"rows_kept":129,"merged":[[0,0,0,7],[2,5,2,7],[13,0,13,3],[18,0,18,3],[104,0,104,7],[119,0,119,3],[123,1,123,3],[126,1,126,3],[129,1,129,3]]}
["Abnahmeprotokoll"]
[]
["Projektname / Bauvorhaben",null,null,"Sanierung Mehrfamilienhaus Musterstraße",null,"Zusammenfassung"]
["Projektnummer",null,null,"2025-OB-017",null,"Anzahl Mängel gesamt",{"$f":"COUNTA(A26:A100)","v":75}]
["Auftraggeber",null,null,"Musterbau GmbH",null,"davon offen",{"$f":"COUNTIF(G26:G100,\"offen\")","v":1}]
["Auftragnehmer",null,null,"Handwerk & Co. Bauunternehmen KG",null,"davon in Bearbeitung",{"$f":"COUNTIF(G26:G100,\"in Bearbeitung\")","v":1}]
["Adresse des Objekts",null,null,"Musterstraße 12",null,"davon erledigt",{"$f":"COUNTIF(G26:G100,\"erledigt\")","v":1}]
["PLZ / Ort",null,null,"26121 Oldenburg",null,"Abnahme-Status",{"$f":"IF(COUNTIF(G26:G100,\"offen\")>0,\"Abnahme mit Mängeln\",\"Abnahme ohne Mängel\")","v":"Abnahme mit Mängeln"}]
["Gewerk / Leistungsbereich",null,null,"Innenausbau / Elektro"]
["Abnahmedatum",null,null,"15.11.2025"]
["Ausführungszeitraum (von)",null,null,"01.07.2025"]
["Ausführungszeitraum (bis)",null,null,"10.11.2025"]
[]
["Beteiligte Personen"]
["Ansprechpartner Auftraggeber",null,null,"Max Mustermann, Projektleiter"]
["Ansprechpartner Auftragnehmer",null,null,"Anna Beispiel, Bauleitung"]
["Weitere Beteiligte / Firmen",null,null,"Elektro Müller GmbH, Malerbetrieb Farbenfroh e.K."]
[]
["Ergebnis der Abnahme"]
["☐ Abnahme ohne Mängel"]
["☒ Abnahme mit Mängeln"]
["☐ Abnahme verweigert"]
[]
[]
["Nr.","Bereich / Bauteil","Raum / Ort","Beschreibung des Mangels","Frist zur Beseitigung","Verantwortlich","Status","Bemerkungen"]
[1,"Elektroinstallation","Wohnzimmer","Steckdose neben Fenster ohne Abdeckung montiert.","30.11.2025","Elektro Müller GmbH","offen","Abdeckung nachliefern und montieren."]
[2,"Malerarbeiten","Treppenhaus","Kleinere Laufnasen im Anstrich im 2. OG.","10.12.2025","Malerbetrieb Farbenfroh e.K.","in Bearbeitung","Nachbesserung bereits eingeplant."]
[3,"Bodenbelag","Küche Whg. 3","Leichte Beschädigung (Kratzer) im Vinylboden nahe Balkontür.","15.12.2025","Handwerk & Co. Bauunternehmen KG","erledigt","Bereich ausgetauscht, Oberflächenbild ok."]
[{"$f":"ROW()-25","v":4}]
[5]
[6]
[7]
[8]
[9]
[10]
[11]
[12]
[13]
[14]
[15]
[16]
[17]
[18]
[19]
[20]
[21]
[22]
[23]
[24]
[25]
[26]
[27]
[28]
[29]
[30]
[31]
[32]
[33]
[34]
[35]
[{"$f":"ROW()-25","v":36}]
[37]
[38]
[39]
[40]
[41]
[42]
[43]
[44]
[45]
[46]
[47]
[48]
[49]
[50]
[51]
[52]
[53]
[54]
[55]
[56]
[57]
[58]
[59]
[60]
[61]
[62]
[63]
[64]
[65]
[66]
[67]
[{"$f":"ROW()-25","v":68}]
[69]
[70]
[71]
[72]
[73]
[74]
[75]
[]
[]
[]
[]
["Checkliste"]
["Prüfpunkt","Erledigt (Ja/Nein)"]
["Dokumentation übergeben","Ja"]
["Bedienungsanleitungen übergeben","Ja"]
["Schlüssel übergeben","Nein"]
["Einweisung durchgeführt","Ja"]
{"$rows_empty":9}
["Unterschriften"]
["Ort, Datum","Oldenburg, 15.11.2025"]
[]
["Auftraggeber (Unterschrift)"]
[]
[]
["Auftragnehmer (Unterschrift)"]
[]
[]
["Sonstige / Zeuge (Unterschrift)"]